Cogmind - Beta 13 @@@ ROGUE MODE // 2024.06.06 @ 21:51:52 Player: Chickoo Result: Destroyed by H-66 Slayer with Gauss Rifle Performance ------------- Evolutions (4) 2000 Regions Visited (9) 1800 Robots Destroyed (96) 480 Value Destroyed (3155) 3155 Prototype IDs (15) 300 Alien Tech Used (0) 0 Bonus (282) 282 TOTAL SCORE: 8017 Bonus ------- High Alert Combat Kills 22 Met Data Miner 300 Friendly Fire -40 Cogmind --------- Core Integrity 0/850 Matter 222/300 Energy 28/100 System Corruption 6% Temperature Cool (0) Movement Core (50) Location -6/Factory Parts ------- > --- POWER (1) -------- (None) > --- PROPULSION (4) --- (None) > --- UTILITY (7) ------ Structural Scanner Advanced Signal Interpreter Makeshift Hacking Suite > --- WEAPON (3) ------- (None) > --- INVENTORY (5) ---- Medium Storage Unit Advanced Particle Charger Utility Shielding Makeshift Laser Neutron Cannon Peak State ------------ > --- POWER ------------ Improved Ion Engine > --- PROPULSION ------- Carbon-fiber Leg Improved Titanium Leg > --- UTILITY ---------- Large Storage Unit Improved Sensor Array Advanced Signal Interpreter 0b10 Decoder Chip [Generic] Layered Medium Armor Plating Hacking Suite System Shield > --- WEAPON ----------- Makeshift Laser Advanced Beam Cannon Neutron Cannon > --- INVENTORY -------- Antimatter Reactor Medium Storage Unit Advanced Energy Well Advanced Particle Charger Makeshift Hacking Suite Shock Rifle Beamcaster Flak Gun Heavy Rocket Launcher Heavy Mace Axe Ripper [Rating: 53] Favorites ----------- Power Improved Ion Engine Engine Improved Ion Engine Propulsion Improved Titanium Leg Treads Light Treads Leg Improved Titanium Leg Wheel Compact Wheel Utility Large Storage Unit Device Improved Sensor Array Storage Large Storage Unit Processor Improved Signal Interpreter Hackware Hacking Suite Protection Hardened Medium Armor Plating Weapon Advanced Beam Cannon Energy Gun Makeshift Laser Energy Cannon Advanced Beam Cannon Ballistic Gun Light Assault Rifle Ballistic Cannon Light Cannon Launcher Grenade Launcher Impact Weapon Heavy Mace Slashing Weapon Axe Build | -11 -10 -10 -8 -7 -7 -7 -7 -6 -6 ------- Run | Yrd Mat Sub Mat Fac Low Low Dat Pro Fac Slots Evolved 8 | . . . 4 2 . . . . 2 Power . | . . . . . . . . . . Propulsion 2 | . . . 1 1 . . . . . Utility 5 | . . . 3 1 . . . . 1 Weapon 1 | . . . . . . . . . 1 Parts Attached 122 | . 10 14 41 3 24 6 1 11 12 Power 7 | . 1 1 2 . 2 1 . . . Engine 7 | . 1 1 2 . 2 1 . . . Core . | . . . . . . . . . . Reactor . | . . . . . . . . . . Propulsion 26 | . 3 6 10 1 4 . . 1 1 Treads 9 | . 2 2 4 . . . . . 1 Leg 16 | . 1 4 6 1 3 . . 1 . Wheel 1 | . . . . . 1 . . . . Hover . | . . . . . . . . . . Flight . | . . . . . . . . . . Utility 37 | . 5 1 14 1 4 1 . 6 5 Device 15 | . 2 1 4 . 2 . . 4 2 Storage 6 | . 3 . 1 . 1 . . 1 . Processor 4 | . . . 2 . . . . 1 1 Hackware 4 | . . . 2 . . 1 . . 1 Protection 8 | . . . 5 1 1 . . . 1 Artifact . | . . . . . . . . . . Weapon 52 | . 1 6 15 1 14 4 1 4 6 Energy Gun 6 | . . 1 1 . 1 1 1 1 . Energy Cannon 11 | . . . 2 1 5 . . 2 1 Ballistic Gun 10 | . 1 3 3 . 2 . . . 1 Ballistic Cannon 6 | . . . 5 . 1 . . . . Launcher 12 | . . 2 4 . 4 2 . . . Special Weapon . | . . . . . . . . . . Impact Weapon 3 | . . . . . . 1 . . 2 Slashing Weapon 4 | . . . . . 1 . . 1 2 Piercing Weapon . | . . . . . . . . . . Special Melee Weapon . | . . . . . . . . . . Unidentified Prototypes 5 | . . . 3 . . . . 2 . Parts Lost 39 | . 1 5 7 . 8 6 . 1 11 Power 4 | . . 1 . . 1 1 . . 1 Propulsion 11 | . . 2 3 . 2 1 . 1 2 Utility 11 | . . . 2 . 2 2 . . 5 Weapon 13 | . 1 2 2 . 3 2 . . 3 Highest Loss Streak 10 | . 1 3 7 . 4 6 . 1 10 To Critical Strikes 1 | . . . . . . . . . 1 Average Slot Usage (%) 88 | . 98 87 84 100 90 85 76 80 82 Engine 8 | . 14 13 9 7 6 6 7 7 5 Treads 5 | . 19 20 6 . . . . . . Leg 14 | . 8 3 16 30 21 12 7 13 12 Device 9 | . 12 7 5 7 10 12 7 8 6 Storage 8 | . 14 14 8 7 7 7 7 7 6 Processor 5 | . . . 3 7 7 7 7 10 12 Hackware 9 | . . . 11 15 10 9 15 15 11 Protection 3 | . . . 4 7 6 4 . . 5 Energy Gun 5 | . 14 6 3 . . 2 7 8 5 Energy Cannon 5 | . . . 1 7 11 10 . 5 9 Ballistic Gun 4 | . 14 21 4 . . . . . . Ballistic Cannon 1 | . . . 7 7 1 . . . . Naked Turns . | . . . . . . . . . . Heaviest Build 52 | 14 30 34 52 47 51 47 35 44 52 Greatest Support 78 | 20 40 40 60 73 78 16 16 35 35 Greatest Overweight (x) 3 | . . 1 3 . 2 2 2 2 1 Average Overweight (x) . | . . . . . . 1 2 . . Largest Inventory Capacity 15 | . 15 15 15 15 15 15 15 15 15 Average Capacity 14 | . 13 15 14 15 15 15 15 15 14 Most Carried 15 | . 14 15 15 15 15 15 11 15 15 Average Carried 13 | . 10 14 13 14 14 13 11 14 12 Final Capacity 15 | 8 15 15 15 15 15 15 15 15 5 Final Carried 15 | 6 14 15 15 15 15 11 11 15 5 Class Distribution -------------------- 67% | Scavenger-Mutant 22% | Mutant 6% | Scavenger-Skirmisher Dominant Class ---------------- Mutant | -10/Materials Mutant | -10/Subcaves Scavenger-Mutant | -8/Materials Scavenger-Mutant | -7/Factory Scavenger-Mutant | -7/Lower Caves Scavenger-Mutant | -7/Lower Caves Scavenger-Mutant | -7/Data Miner Scavenger-Mutant | -6/Proximity Caves Scavenger-Skirmisher | -6/Factory Resources | -11 -10 -10 -8 -7 -7 -7 -7 -6 -6 ----------- Run | Yrd Mat Sub Mat Fac Low Low Dat Pro Fac Matter Collected 2144 | 200 179 182 735 34 509 102 . 179 24 Remotely 155 | . . . . . 112 43 . . . Salvage Created 3042 | . 463 139 908 67 530 215 . 359 361 Parts 164 | . 28 9 56 6 26 8 . 7 24 Haulers Intercepted 4 | . 1 . 2 . . . . . 1 Recyclers Shooed 2 | . . . . . . . . . 2 Parts Field Recycled . | . . . . . . . . . . Retrieved Matter . | . . . . . . . . . . Parts Self-Destructed 37 | . . 4 . . 20 9 . 4 . Prevented 2 | . . . . . . 2 . . . Kills | -11 -10 -10 -8 -7 -7 -7 -7 -6 -6 ------- Run | Yrd Mat Sub Mat Fac Low Low Dat Pro Fac Combat Hostiles Destroyed 76 | . 12 6 23 1 14 13 . 3 4 Guns 21 | . 12 2 1 . 1 2 . 2 1 Cannons 20 | . . . 8 1 9 . . 1 1 AOE 32 | . . 4 13 . 3 11 . . 1 Classes Destroyed 16 | . 5 1 5 . 4 . . . 1 Worker 3 | . . . 3 . . . . . . Builder 3 | . . . . . . . . . 3 Tunneler 2 | . . . 2 . . . . . . Hauler 4 | . 1 . 2 . . . . . 1 Recycler 1 | . . . 1 . . . . . . Operator 2 | . 1 . 1 . . . . . . Watcher 5 | . 2 . 3 . . . . . . Swarmer 21 | . 6 . 8 . 1 6 . . . Grunt 33 | . 6 . 11 . 5 6 . 2 3 Duelist 4 | . . . 1 . 2 . . 1 . Sentry 6 | . . . 3 1 1 1 . . . Specialist 2 | . . . . . 2 . . . . Hunter 1 | . . . . . 1 . . . . Programmer 2 | . . . . . 1 . . . 1 Subdweller 6 | . . 6 . . . . . . . Thief 1 | . . . . . 1 . . . . Best Kill Streak 13 | . 3 4 8 1 3 13 . 2 6 Combat Bots Only 13 | . 3 4 7 1 3 13 . 2 3 Max Kills in Single Turn 4 | . 2 2 4 1 1 3 . 1 2 Gunslinging 1 | . 1 . . . . . . . . Exploded 4 | . . 2 4 . 1 3 . . 1 Melee . | . . . . . . . . . . Uniques/NPCs Destroyed . | . . . . . . . . . . Combat | -11 -10 -10 -8 -7 -7 -7 -7 -6 -6 -------- Run | Yrd Mat Sub Mat Fac Low Low Dat Pro Fac Hostile Shots Fired 642 | . 61 27 132 9 168 33 . 12 200 Missed 201 | . 17 5 43 3 63 8 . 7 55 Damage Taken 6687 | . 451 568 1291 46 1819 524 . 95 1893 Core 1688 | . 96 105 220 6 305 87 . . 869 Absorbed by Shields . | . . . . . . . . . . Regen/Repaired (Parts) 18 | . . . 18 . . . . . . Core Remaining (%) 55 | 100 . 19 60 . . . . 43 . Volleys Fired 209 | . 46 19 58 2 53 7 . 16 8 Largest 3 | . 2 2 2 2 2 2 . 2 3 Hottest 170 | . 70 105 103 100 140 148 . 130 170 Shots Fired 391 | . 91 35 102 4 95 9 . 30 25 Gun 216 | . 91 32 36 . 17 2 . 21 17 Cannon 145 | . . . 58 4 63 3 . 9 8 Launcher 30 | . . 3 8 . 15 4 . . . Special . | . . . . . . . . . . Kinetic 182 | . 45 29 73 2 23 2 . . 8 Thermal 184 | . 46 3 21 2 60 5 . 30 17 Explosive 25 | . . 3 8 . 12 2 . . . Electromagnetic . | . . . . . . . . . . Robot Hit Streak 25 | . 7 19 25 8 10 3 . 10 4 Robot Miss Streak 4 | . 3 1 4 . 4 2 . 3 3 Penetration Max 1 | . . . . . . . . . 1 Secondary Targets 3 | . 3 . . . . . . . . Max Gunslinging Chain 1 | . 1 . . . . . . . . Shots Hit Robots 263 | . 57 31 68 4 58 5 . 20 20 Core Hits 179 | . 26 13 53 3 34 26 . 13 11 Critical Kills 2 | . . . 1 . 1 . . . . Critical Parts Destroyed 1 | . . . . . . . . . 1 Critical Strikes 14 | . . 2 4 . 3 . . 3 2 Burn 7 | . . 1 1 . 2 . . 3 . Meltdown 2 | . . . 1 . 1 . . . . Destroy 1 | . . 1 . . . . . . . Blast 2 | . . . 2 . . . . . . Smash 1 | . . . . . . . . . 1 Sever 1 | . . . . . . . . . 1 Melee Attacks 12 | . . . . . 1 1 . . 10 Impact 3 | . . . . . . 1 . . 2 Slashing 9 | . . . . . 1 . . . 8 Piercing . | . . . . . . . . . . Sneak Attacks . | . . . . . . . . . . Combat Hostiles . | . . . . . . . . . . Follow-up Attacks 2 | . . . . . . . . . 2 Damage Inflicted 8886 | . 684 903 2355 95 2174 1301 . 434 940 Guns 2274 | . 670 309 480 . 217 20 . 288 290 Cannons 2345 | . . . 854 90 991 . . 146 264 Explosions 4007 | . . 594 1021 . 966 1281 . . 145 Melee 241 | . . . . . . . . . 241 Ramming 19 | . 14 . . 5 . . . . . Kinetic 3010 | . 272 244 1024 38 461 787 . . 184 Thermal 2784 | . 398 65 310 52 990 20 . 434 515 Explosive 2832 | . . 594 1021 . 723 494 . . . Electromagnetic . | . . . . . . . . . . Impact 52 | . . . . . . . . . 52 Slashing 189 | . . . . . . . . . 189 Piercing . | . . . . . . . . . . Highest Corruption 6 | . . . . 2 3 3 3 3 6 Average Corruption 2 | . . . . 1 2 3 3 3 1 Corruption Purged . | . . . . . . . . . . Corruption Blocked . | . . . . . . . . . . Effects 55 | . . . . . 21 10 1 21 2 Message Errors 14 | . . . . . 6 3 . 5 . Matter Fused 13 | . . . . . 4 3 . 6 . Heat Flow Errors 6 | . . . . . 2 1 1 2 . Energy Discharges 7 | . . . . . 3 1 . 3 . Data Loss (minor) 6 | . . . . . 1 2 . 2 1 Data Loss (major) 4 | . . . . . 2 . . 2 . Misfires 4 | . . . . . 2 . . 1 1 Weapon Failures 1 | . . . . . 1 . . . . Overload Shots . | . . . . . . . . . . Overflow Damage 99 | . . 3 4 . 36 13 . 11 32 Projectiles 16 | . . . 4 . 1 . . 11 . Explosions 51 | . . 3 . . 35 13 . . . Melee 32 | . . . . . . . . . 32 Knockbacks 6 | . . . 4 . 2 . . . . Impact . | . . . . . . . . . . Kinetic 6 | . . . 4 . 2 . . . . Secondary . | . . . . . . . . . . Self-Inflicted Damage 600 | . . 84 41 . 304 108 . . 63 Shots 18 | . . 3 2 . 8 4 . . 1 Rammed 4 | . 4 . . . . . . . . Targets Rammed 5 | . 4 . . 1 . . . . . Kicked 1 | . . . . 1 . . . . . Crushed . | . . . . . . . . . . Highest Temperature 538 | . 78 1 197 60 420 120 185 323 538 Average Temperature 88 | . 16 1 36 30 119 37 101 106 220 Received Heat Transfer 1905 | . 123 87 657 12 357 144 . 45 480 Effects 10 | . . . . . 4 . . . 6 Shutdowns 2 | . . . . . 1 . . . 1 Interference 7 | . . . . . 2 . . . 5 Short Circuit 1 | . . . . . 1 . . . . Siege Activations . | . . . . . . . . . . Robots Corrupted . | . . . . . . . . . . Combat Hostiles . | . . . . . . . . . . Parts Fried . | . . . . . . . . . . Impact Corruptions 1 | . . . . . . . . . 1 Robots Melted 2 | . . . 1 . 1 . . . . Combat Hostiles 2 | . . . 1 . 1 . . . . Parts Melted 13 | . 1 1 5 . 5 . . 1 . Heat Transferred 5175 | . 1147 185 629 74 1591 50 . 1127 372 Parts Sabotaged . | . . . . . . . . . . Parts Stolen 3 | . . . . . 3 . . . . Parts Stripped . | . . . . . . . . . . Power Chain Reactions 1 | . . . . . . . . . 1 Alert | -11 -10 -10 -8 -7 -7 -7 -7 -6 -6 ------- Run | Yrd Mat Sub Mat Fac Low Low Dat Pro Fac Peak Influence 476 | . 190 . 476 239 . . . . 117 Initial 170 | . . . 1 170 . . . . . Average 136 | . 93 . 233 191 . . . . 15 Maximum Alert Level 2 | . . . 2 1 . . . . . Low Security (%) 75 | . 100 . 39 64 . . . . 100 Level 1 18 | . . . 43 35 . . . . . Level 2 6 | . . . 16 . . . . . . Level 3 . | . . . . . . . . . . Level 4 . | . . . . . . . . . . Level 5 . | . . . . . . . . . . High Security . | . . . . . . . . . . Max Security . | . . . . . . . . . . Squads Dispatched 13 | . 3 . 3 1 . 1 . . 5 Investigation 6 | . 1 . 1 1 . 1 . . 2 Extermination . | . . . . . . . . . . Reinforcement 5 | . 2 . 1 . . . . . 2 Assault . | . . . . . . . . . . Garrison 2 | . . . 1 . . . . . 1 Intercept . | . . . . . . . . . . Searches Triggered . | . . . . . . . . . . Construction Impeded . | . . . . . . . . . . Haulers Reinforced . | . . . . . . . . . . Active Scanning Responses . | . . . . . . . . . . Cargo Convoy Interrupts . | . . . . . . . . . . Stealth | -11 -10 -10 -8 -7 -7 -7 -7 -6 -6 --------- Run | Yrd Mat Sub Mat Fac Low Low Dat Pro Fac Distress Signals 2 | . 1 . 1 . . . . . . Communications Jammed . | . . . . . . . . . . Distress Signals . | . . . . . . . . . . Times Spotted 115 | . 24 13 31 1 16 13 . 4 13 Peak Tracking Total 13 | . 5 5 11 1 3 13 . 3 8 Tactical Retreats 1 | . . . . . . . . 1 . Traps | -11 -10 -10 -8 -7 -7 -7 -7 -6 -6 ------- Run | Yrd Mat Sub Mat Fac Low Low Dat Pro Fac Traps Triggered 4 | . 1 . . 2 . . . . 1 Indirectly . | . . . . . . . . . . Trap Hack Attempts . | . . . . . . . . . . Triggered . | . . . . . . . . . . Disarmed . | . . . . . . . . . . Reprogrammed . | . . . . . . . . . . Reused . | . . . . . . . . . . Traps Extracted . | . . . . . . . . . . Installed . | . . . . . . . . . . Triggered 3 | . . . . . . 3 . . . Machines | -11 -10 -10 -8 -7 -7 -7 -7 -6 -6 ---------- Run | Yrd Mat Sub Mat Fac Low Low Dat Pro Fac Machines Disabled 11 | . . . 3 . 4 4 . . . Max in Single Turn 2 | . . . 1 . 2 1 . . . Garrison Access 1 | . . . 1 . . . . . . Machines Repaired . | . . . . . . . . . . Machines Dismantled . | . . . . . . . . . . Machines Sabotaged . | . . . . . . . . . . Overloaded Fab Kills . | . . . . . . . . . . Hacking | -11 -10 -10 -8 -7 -7 -7 -7 -6 -6 --------- Run | Yrd Mat Sub Mat Fac Low Low Dat Pro Fac Machines Accessed 22 | . 4 1 6 1 . 1 4 . 5 Terminals 12 | . 4 . 3 1 . 1 . . 3 Fabricators 1 | . . . . . . . . . 1 Repair Stations 1 | . . . 1 . . . . . . Recycling Units . | . . . . . . . . . . Scanalyzers 1 | . . . 1 . . . . . . Garrison Access 2 | . . . 1 . . . . . 1 Total Hacks 88 | . 19 2 18 3 . 4 30 . 12 Successful 61 | . 8 2 14 1 . 4 30 . 2 Failed 27 | . 11 . 4 2 . . . . 10 Catastrophic 9 | . 2 . 1 . . . . . 6 Database Lockouts . | . . . . . . . . . . Manual 27 | . 13 . 4 . 1 . . . 9 Terminals 39 | . 19 . 7 3 . 4 . . 6 Fabricators 3 | . . . . . . . . . 3 Repair Stations 2 | . . . 2 . . . . . . Recycling Units . | . . . . . . . . . . Scanalyzers 8 | . . . 8 . . . . . . Garrison Access 4 | . . . 1 . . . . . 3 Terminal Hacks 48 | . 8 2 3 1 . 4 30 . . Record 17 | . . 2 . . . 4 11 . . Part Schematic 10 | . . . . . . . 10 . . Robot Schematic 6 | . . . . . . . 6 . . Robot Analysis 3 | . 3 . . . . . . . . Prototype ID Bank 3 | . . . . . . . 3 . . Branch Access Points 2 | . . . 1 1 . . . . . Alert Level 1 | . 1 . . . . . . . . Unreport Threat 1 | . . . 1 . . . . . . Locate Traps 1 | . 1 . . . . . . . . Maintenance Status 1 | . 1 . . . . . . . . Patrol Status 1 | . . . 1 . . . . . . Hauler Manifests 1 | . 1 . . . . . . . . Registered Components 1 | . 1 . . . . . . . . Fabricator Hacks 1 | . . . . . . . . . 1 Load Schematic 1 | . . . . . . . . . 1 Repair Station Hacks 2 | . . . 2 . . . . . . Scan Component 1 | . . . 1 . . . . . . Repair 1 | . . . 1 . . . . . . Recycling Unit Hacks . | . . . . . . . . . . Scanalyzer 8 | . . . 8 . . . . . . Insert Component 4 | . . . 4 . . . . . . Analyze 4 | . . . 4 . . . . . . Garrison Access Hacks 1 | . . . 1 . . . . . . Seal Access 1 | . . . 1 . . . . . . Unauthorized Hacks 1 | . . . . . . . . . 1 Terminals 1 | . . . . . . . . . 1 Assimilate 1 | . . . . . . . . . 1 Fabricators . | . . . . . . . . . . Repair Stations . | . . . . . . . . . . Recycling Units . | . . . . . . . . . . Scanalyzers . | . . . . . . . . . . Garrison Access . | . . . . . . . . . . Data Cores Recovered . | . . . . . . . . . . Used . | . . . . . . . . . . Hacking Detections 15 | . 4 . 4 1 . 1 . . 5 Full Trace Events 5 | . . . 1 1 . 1 . . 2 Feedback Events 1 | . . . . . . . . . 1 Hackware Fried 1 | . . . . . . . . . 1 Feedback Blocked . | . . . . . . . . . . Robot Schematics Acquired 6 | . . . . . . . 6 . . Robots Built . | . . . . . . . . . . Authchips . | . . . . . . . . . . Time . | . . . . . . . . . . Total Robot Build Rating . | . . . . . . . . . . Part Schematics Acquired 14 | . . . 4 . . . 10 . . Parts Built . | . . . . . . . . . . Authchips . | . . . . . . . . . . Time . | . . . . . . . . . . Total Part Build Rating . | . . . . . . . . . . Parts Repaired 1 | . . . 1 . . . . . . Time 26 | . . . 26 . . . . . . Parts Recycled . | . . . . . . . . . . Recycled Matter . | . . . . . . . . . . Retrieved Matter . | . . . . . . . . . . Retrieved Components . | . . . . . . . . . . Parts Scanalyzed 4 | . . . 4 . . . . . . Part Schematics Acquired 4 | . . . 4 . . . . . . Parts Damaged . | . . . . . . . . . . Bothacking | -11 -10 -10 -8 -7 -7 -7 -7 -6 -6 ------------ Run | Yrd Mat Sub Mat Fac Low Low Dat Pro Fac Used RIF Installer . | . . . . . . . . . . Robots Hacked . | . . . . . . . . . . Non-combat . | . . . . . . . . . . Combat . | . . . . . . . . . . Robot Hacks Applied . | . . . . . . . . . . Relay Couplers Released . | . . . . . . . . . . Fabnet Peak Effective % . | . . . . . . . . . . Robots Rewired . | . . . . . . . . . . Allies Hacked . | . . . . . . . . . . Hacks Repelled . | . . . . . . . . . . Allies | -11 -10 -10 -8 -7 -7 -7 -7 -6 -6 -------- Run | Yrd Mat Sub Mat Fac Low Low Dat Pro Fac Total Allies 1 | . . . . . . . . 1 . Largest Group 1 | . . . . . . . . 1 . Highest-Rated Group 96 | . . . . . . . . 96 . Highest-Rated Ally 96 | . . . . . . . . 96 . Total Orders 5 | . . . . . . . . 4 1 EXPLORE 3 | . . . . . . . . 2 1 RETURN 2 | . . . . . . . . 2 . Ally Attacks 10 | . . . . . . . . 10 . Total Damage 377 | . . . . . . . . 377 . Kills . | . . . . . . . . . . Allies Corrupted . | . . . . . . . . . . Allies Melted . | . . . . . . . . . . Intel | -11 -10 -10 -8 -7 -7 -7 -7 -6 -6 ------- Run | Yrd Mat Sub Mat Fac Low Low Dat Pro Fac Robot Analysis Total 3 | . 3 . . . . . . . . Derelict Logs Recovered 2 | . . . . . 1 1 . . . Drone Launches 4 | . . . . . . . . 2 2 Drone Recoveries 2 | . . . . . . . . 2 . Decoded 0b10 Intel 17 | . . . . . . . . . 17 Traps 1 | . . . . . . . . . 1 Emergency Access 6 | . . . . . . . . . 6 Items 7 | . . . . . . . . . 7 Machines 2 | . . . . . . . . . 2 Patrols 1 | . . . . . . . . . 1 Exploration | -11 -10 -10 -8 -7 -7 -7 -7 -6 -6 ------------- Run | Yrd Mat Sub Mat Fac Low Low Dat Pro Fac Turns Passed 6646 | . 1155 354 1140 212 1453 597 109 1016 610 Spaces Moved 3593 | 1 660 153 538 157 784 442 83 524 251 Core 4 | . . . . . . . . . 4 Treads 675 | . 425 131 119 . . . . . . Legs 2255 | 1 235 22 419 157 725 . . 449 247 Wheels 659 | . . . . . 59 442 83 75 . Hover . | . . . . . . . . . . Flight . | . . . . . . . . . . Fastest Speed 50 | 120 120 160 120 127 127 115 130 125 50 Average Speed 154 | 120 145 182 155 127 153 129 130 174 192 Slowest Speed 330 | 120 160 240 330 127 270 130 130 200 195 Overloaded Moves . | . . . . . . . . . . Propulsion Burnouts . | . . . . . . . . . . Robots Hopped . | . . . . . . . . . . Cave-ins Triggered . | . . . . . . . . . . Exploration Rate (%) 42 | 2 84 8 43 3 87 53 69 63 11 Regions Visited 9 Branch Regions 5 Pre-discovered Areas 1 | . . . . . . . 1 . . Known Exits Taken 6 | . . . 1 1 1 1 1 1 . Unknown Exits Taken 3 | 1 1 1 . . . . . . . Scrap Searched 9 | . . . . . 3 1 . 5 . Spaces Dug 6 | . . . . . 6 . . . . Terrain Destroyed 195 | . . 7 54 . 108 22 . . 4 Melee . | . . . . . . . . . . Projectile 10 | . . . 4 . 5 . . . 1 AOE 185 | . . 7 50 . 103 22 . . 3 Terrain Rammed . | . . . . . . . . . . Walls Destroyed . | . . . . . . . . . . Machines Disabled . | . . . . . . . . . . Actions | -11 -10 -10 -8 -7 -7 -7 -7 -6 -6 --------- Run | Yrd Mat Sub Mat Fac Low Low Dat Pro Fac Total 4304 | . 771 202 749 166 934 455 83 601 343 Wait 220 | . 27 . 50 . 59 . . 27 57 Move 3583 | . 659 151 537 156 783 441 82 523 251 Hop . | . . . . . . . . . . Pick Up 70 | . 14 6 29 2 8 . . 8 3 Fast Attach 41 | . 1 4 20 1 6 . . 8 1 Attach 41 | . 3 6 13 2 7 4 . 1 5 Detach 19 | . . 3 8 1 1 . . 5 1 Swap 40 | . 6 4 8 . 11 2 1 2 6 Drop 65 | . 11 9 26 1 5 . . 10 3 Fire 209 | . 46 19 58 2 53 7 . 16 8 Melee 10 | . . . . . 1 1 . . 8 Ram . | . . . . . . . . . . Kick 1 | . . . . 1 . . . . . Crush 4 | . 4 . . . . . . . . Escape Stasis . | . . . . . . . . . . Rewire 1 | . . . . . . . . 1 . Trap . | . . . . . . . . . . Miscellaneous . | . . . . . . . . . . Route ------- -11/Scrapyard -10/Materials (discovered 4 exits: [*Mat x3] / *Sub) -10/Subcaves -8/Materials (discovered 2 exits: *Fac x2) -7/Factory (discovered 2 exits: *Low x2) -7/Lower Caves -7/Lower Caves -7/Data Miner -6/Proximity Caves -6/Factory (discovered 1 exit: Low) History --------- Turn | Location | Event 1 | -11/Scrapyard | Discovered new exit (range 0) 1 | -11/Scrapyard | Entered Materials 310 | -10/Materials | Build established: Mutant 508 | -10/Materials | Discovered new exit (range 7) 653 | -10/Materials | Discovered new exit (range 13) 990 | -10/Materials | Discovered new exit (range 15) 1148 | -10/Materials | Discovered new exit (range 6) 1156 | -10/Materials | Entered Subcaves 1268 | -10/Subcaves | Visited Clippyterm 1291 | -10/Subcaves | Ambushed by swarm of Subdwellers 1294 | -10/Subcaves | Ambushed by Subdwellers from Twisted Machinery 1299 | -10/Subcaves | Core integrity fell below 50% 1329 | -10/Subcaves | Lost 3 allies 1356 | -10/Subcaves | Lost 3 parts (1p1n1w) 1414 | -10/Subcaves | Discovered new exit (range 12) 1435 | -10/Subcaves | Core integrity fell below 20% 1510 | -10/Subcaves | Entered Materials 1510 | -8/Materials | Evolved 4 slots: Propulsion x1, Utility x3 1765 | -8/Materials | Repaired Lrg. Storage Unit 1832 | -8/Materials | Build established: Scavenger-Mutant 1938 | -8/Materials | Destroyed 7 combat bots 1954 | -8/Materials | Garrison activated, responded to threat 1983 | -8/Materials | Lost 7 parts (3n2u2w) 2407 | -8/Materials | Discovered new exit (range 10) 2519 | -8/Materials | Discovered new exit (range 15) 2648 | -8/Materials | Identified exit to Factory 2650 | -8/Materials | Entered Factory 2650 | -7/Factory | Evolved 2 slots: Propulsion x1, Utility x1 2815 | -7/Factory | Identified exit to Lower Caves 2862 | -7/Factory | Entered Lower Caves 3042 | -7/Lower Caves | Acquired the password to a Derelict Tinkerer's latest research 3276 | -7/Lower Caves | Caught by Unaware searching for contraband prototypes 3454 | -7/Lower Caves | Caught by Unaware searching for contraband prototypes 3534 | -7/Lower Caves | Attracted the attention of an 0b10 checkpoint 3540 | -7/Lower Caves | Lost 3 parts (1n1u1w) 3598 | -7/Lower Caves | Lost 4 parts (1p1n1u1w) 4107 | -7/Lower Caves | Learned 4 Factory zone layouts 4188 | -7/Lower Caves | Discovered new exit (range 9) 4205 | -7/Lower Caves | Identified exit to Lower Caves 4315 | -7/Lower Caves | Entered another Lower Caves area 4706 | -7/Lower Caves | Attracted the attention of an 0b10 base 4716 | -7/Lower Caves | Core integrity fell below 50% 4744 | -7/Lower Caves | Destroyed 13 combat bots 4746 | -7/Lower Caves | Lost 6 parts (1p1n2u2w) 4903 | -7/Lower Caves | Discovered new exit (range 5) 4910 | -7/Lower Caves | Identified exit to Data Miner 4912 | -7/Lower Caves | Entered Data Miner 4912 | -7/Data Miner | Discovered new exit (range 6) 4937 | -7/Data Miner | Met Data Miner 4963 | -7/Data Miner | Learned location of Section 7 (-2) 4963 | -7/Data Miner | Acquired the access code to Warlord's prototype stash 4988 | -7/Data Miner | Received God Mode back door access code from Data Miner 5015 | -7/Data Miner | Identified exit to Proximity Caves 5021 | -7/Data Miner | Entered Proximity Caves 5937 | -6/Proximity Caves | Discovered new exit (range 9) 6033 | -6/Proximity Caves | Identified exit to Factory 6037 | -6/Proximity Caves | Entered Factory 6037 | -6/Factory | Evolved 2 slots: Utility x1, Weapon x1 6038 | -6/Factory | Identified exit to Lower Caves 6327 | -6/Factory | Build established: Scavenger-Skirmisher 6520 | -6/Factory | Hacking Suite fried by hacking feedback 6564 | -6/Factory | Garrison activated, responded to threat 6638 | -6/Factory | Core integrity fell below 50% 6644 | -6/Factory | Core integrity fell below 20% 6647 | -6/Factory | Destroyed by H-66 Slayer with Gauss Rifle Last Messages --------------- 06637_ U-05 Engineer builds a Door. 06638_ U-05 Engineer lays Concrete. 06640_ Med. Treads destroyed. 06641_ K-01 Serf collects debris. 06641_ U-05 Engineer lays Concrete. 06642_ U-05 Engineer builds a Wall. 06643_ Axe destroyed. 06643_ System Shield destroyed. 06643_ Critical hit (Blast). 06643_ Knocked back. 06643_ M-28 Smith repairs Wheel. 06643_ U-05 Engineer lays Concrete. 06644_ K-01 Serf collects debris. 06644_ U-05 Engineer lays Concrete. 06644_ Dropped Lrg. Storage Unit. 06645_ Acquired 12 matter. 06646_ M-28 Smith repairs G-50 Soldier. 06647_ H-66 Slayer suffers critical hit (Burn). 06647_ Acquired Structural Scanner. 06647_ Penetrated by Slug. Map ----- +----------------------------------------------------+ | ?????????????????????????????????????????????????? | | ?????????????????????????????????????????????????? | | ?????????????????????????????????????????????????? | | ?????????????????????????????????????????????????? | | ?????????????????????????????????????????????????? | | ?????????????????????????????????????????????????? | | ?????????????????????????????????????????????????? | | ?????????????????????????????????????????????????? | | ?????????????????????????????????????????????????? | | ?????????????????????????????????????????????????? | | ?????????????????????????????????????????????????? | | ?????????????????????? #????????????????????????? | | ?????????????????????? #????????? #?????????????? | | ?????????????????????" #???????? #?????????????? | | ???????????????????? " ???????? +?????????????? | | ???????????????????? ???????? #?????????????? | | ??????????????????? ???????? #?????????????? | | ????????##########+########### #?????????????? | | ????????# #?????????????? | | ????????# !* #?????????????? | | ????????# !% % #?????????????? | | ????????# !!=[! * #?????????????? | | ????????# |%= %%= #?????????????? | | ????????# ####!#####+######+####?????????????? | | ######### #??# ##/mu%%| # ??????????????????? | | ""G"" #??# ##=!g%@ # ??????????????????? | | "" "" #??# ##H=Ymh # ??????????????????? | | #??# ## ]g![k # ??????????????????? | | ^ """ """ #??# ## %![[= # ??????????????????? | | """ """ ""?# ## * # ???????????+??+???? | | ## """ """ """# ## # !?????????????????? | | # """? ## !# ??????????????????? | | # """ """ F"? ## [ # ??????????????????? | | # """ """ """? ########### ??????????????????? | | # """ """ "" ? ########### ??????????????????? | | # ##?? ??????????????????????????????? | | # ?? #???+??????????????????????????????? | | ######### ?? #??????????????????????????????????? | | # ???????????????????????????????????? | | "" # ????????????????????????????????????? | | """ # ???????????????????????????????????? | | """ S" # ???????????????????????????????????? | | """ """ + /??????????????????????????????????? | | """ """ # #??????????????????????????????????? | | # #??????????????????????????????????? | | # #??????????????????????????????????? | | ####+#### #######????????????????????????????? | | ???# #??# #????????????????????????????? | | ???# #??# ^ #????????????????????????????? | | ???# #??# """ """ #######??????????????????????? | +----------------------------------------------------+ Best States ------------- Heat Dissipation 61 Energy Generation 16 Energy Capacity 290 Matter Stores 300 Matter Capacity 300 Sight Range 21 Robot Scan Range 15 Terrain Scan Density 10 Armor Coverage 800 Evasion (%) 55 Recoil Reduction 2 Particle Charging 25 Offensive Hacking 10 Defensive Hacking 10 Item Schematics ----------------- Sub. Shrapnel Launcher | -8/Materials | Scanalyzed Med. Storage Unit | -8/Materials | Scanalyzed Imp. Titanium Leg | -8/Materials | Scanalyzed System Shield | -8/Materials | Scanalyzed Combat Drone Bay | -7/Data Miner | Free Lgt. Regenerative Plating | -7/Data Miner | Free Gravity Neutralizer | -7/Data Miner | Free Cld. Aerolev Unit | -7/Data Miner | Free Ion Burst Cannon | -7/Data Miner | Free Linear Gravjet | -7/Data Miner | Free Adv. System Shield | -7/Data Miner | Free Hyp. Gauss Cannon | -7/Data Miner | Free Variable Charge Gun | -7/Data Miner | Free Field Propulsion Array | -7/Data Miner | Free Robot Schematics ------------------ B-48 Gladiator | -7/Data Miner | Free M-28 Smith | -7/Data Miner | Free W-25 Informer | -7/Data Miner | Free M-22 Extractor | -7/Data Miner | Free R-10 Processor | -7/Data Miner | Free S-27 Virus | -7/Data Miner | Free Fabricated ------------ Nothing Alien Tech Used ----------------- None Achievements -------------- Use The Force Challenges ------------ None Game ------ Seed OpticalInsulationWeb Manual? 0 Play Time 01:05:30 Cumulative 53.7 hours Start 2024.06.06 @ 20:46:56 End 2024.06.06 @ 21:51:52 Sessions 1 Manual Loads 0 Difficulty Rogue Special Mode None Game No. 36 Rogue 36 Adventurer 0 Explorer 0 Win Type - Total 1 Types 1/0/0/0/0/0/0/0/0 Lore% 32 Gallery% 47 Achievement% 39 Wizard Run 0 Options --------- Layout 0 ASCII 0 Keyboard 0 Movement Mouse Keybinds 0 Fullscreen 1 Font 24/Smallcaps Map View 76x50 Zoom Use 0% Tactical HUD 1 Map Filters NONE Filters NONE Steam 1 RUN: 83346edc-7f90-4dc9-84aa-1dd805866cbc